fUST/lending_fUST_20240822
["ID","MTS","AMOUNT","RATE_DAILY","PERIOD"]
[335525755,1724307043745,-500.0,0.00019178,2]
[335525757,1724307043754,-2580.48,0.00019178,2]
[335525759,1724307043765,-754.86,0.00019178,2]
[335525761,1724307043774,-500.0,0.00019178,2]
[335525763,1724307043783,-459.9988217,0.00019178,2]
[335525765,1724307043793,-500.0,0.00019178,2]
[335525768,1724307043807,-458.759137,0.00019178,2]
[335525770,1724307043817,-458.759137,0.00019178,2]
[335525772,1724307043828,-458.759137,0.00019178,2]
[335525774,1724307043838,-458.759137,0.00019178,2]
[335525776,1724307043848,-500.0,0.00019178,2]
[335525778,1724307043859,-500.0,0.00019178,2]
[335525780,1724307043871,-458.759137,0.00019178,2]
[335525782,1724307043880,-458.759137,0.00019178,2]
[335525784,1724307043891,-458.759137,0.00019178,2]
[335525786,1724307043902,-458.759137,0.00019178,2]
[335525788,1724307043911,-500.0,0.00019178,2]
[335525790,1724307043921,-500.0,0.00019178,2]
[335525792,1724307043931,-500.0,0.00019178,2]
[335525794,1724307043942,-500.0,0.00019178,2]
[335525797,1724307043951,-153.129118,0.00019178,2]
[335525799,1724307043962,-500.0,0.00019178,2]
[335525801,1724307043983,-500.0,0.00019178,2]
[335525803,1724307043994,-500.0,0.00019178,2]
[335525805,1724307044007,-500.0,0.00019178,2]
[335525807,1724307044018,-1244.92,0.00019178,2]
[335525809,1724307044029,-1094.98,0.00019178,2]
[335525811,1724307044041,-1094.98,0.00019178,2]
[335525813,1724307044051,-500.0,0.00019178,2]
[335525816,1724307044061,-1094.98,0.00019178,2]
[335525818,1724307044072,-1094.98,0.00019178,2]
[335525820,1724307044081,-1094.98,0.00019178,2]
[335525822,1724307044092,-1094.98,0.00019178,2]
[335525824,1724307044104,-1094.98,0.00019178,2]
[335525826,1724307044115,-1094.98,0.00019178,2]
[335525829,1724307044128,-1094.98,0.00019178,2]
[335525831,1724307044140,-1094.98,0.00019178,2]
[335525833,1724307044151,-1094.98,0.00019178,2]
[335525835,1724307044160,-1094.98,0.00019178,2]
[335525837,1724307044170,-1094.98,0.00019178,2]
[335525839,1724307044179,-1094.98,0.00019178,2]
[335525841,1724307044190,-1094.98,0.00019178,2]
[335525844,1724307044202,-1094.98,0.00019178,2]
[335525846,1724307044212,-1094.98,0.00019178,2]
[335525848,1724307044223,-1094.98,0.00019178,2]
[335525850,1724307044235,-1094.98,0.00019178,2]
[335525852,1724307044246,-1094.98,0.00019178,2]
[335525854,1724307044257,-1094.98,0.00019178,2]
[335525856,1724307044267,-1094.98,0.00019178,2]
[335525858,1724307044278,-1094.98,0.00019178,2]
[335525860,1724307044289,-1095.17002867,0.00019178,2]
[335525862,1724307044298,-1000.0,0.00019178,2]
[335525864,1724307044307,-500.0,0.00019178,2]
[335525867,1724307044317,-1440.05,0.00019178,2]
[335525869,1724307044329,-500.0,0.00019178,2]
[335525871,1724307044339,-500.0,0.00019178,2]
[335525873,1724307044349,-500.0,0.00019178,2]
[335525875,1724307044359,-500.0,0.00019178,2]
[335525877,1724307044370,-500.0,0.00019178,2]
[335525879,1724307044380,-500.0,0.00019178,2]
[335525881,1724307044390,-151.0,0.00019178,2]
[335525883,1724307044401,-151.0,0.00019178,2]
[335525885,1724307044412,-151.0,0.00019178,2]
[335525887,1724307044421,-151.0,0.00019178,2]
[335525889,1724307044432,-260.94950624,0.00019178,2]
[335525891,1724307044441,-151.0,0.00019178,2]
[335525893,1724307044450,-500.0,0.00019178,2]
[335525895,1724307044460,-500.0,0.00019178,2]
[335525897,1724307044469,-500.0,0.00019178,2]
[335525899,1724307044479,-500.0,0.00019178,2]
[335525901,1724307044489,-500.0,0.00019178,2]
[335525904,1724307044499,-500.0,0.00019178,2]
[335525906,1724307044508,-500.0,0.00019178,2]
[335525907,1724307044518,-151.0,0.00019178,2]
[335525910,1724307044528,-151.0,0.00019178,2]
[335525912,1724307044537,-151.0,0.00019178,2]
[335525914,1724307044546,-151.0,0.00019178,2]
[335525916,1724307044557,-151.0,0.00019178,2]
[335525918,1724307044568,-152.782274,0.00019178,2]
[335525920,1724307044579,-151.0,0.00019178,2]
[335525922,1724307044589,-151.0,0.00019178,2]
[335525924,1724307044599,-500.0,0.00019178,2]
[335525926,1724307044609,-500.0,0.00019178,2]
[335525928,1724307044618,-151.0,0.00019178,2]
[335525930,1724307044629,-151.0,0.00019178,2]
[335525932,1724307044639,-153.731079,0.00019178,2]
[335525934,1724307044651,-500.0,0.00019178,2]
[335525936,1724307044660,-500.0,0.00019178,2]
[335525938,1724307044670,-500.0,0.00019178,2]
[335525940,1724307044679,-151.0,0.00019178,2]
[335525942,1724307044688,-501.11993912,0.00019178,2]
[335525944,1724307044698,-151.0,0.00019178,2]
[335525946,1724307044707,-151.0,0.00019178,2]
[335525948,1724307044716,-151.0,0.00019178,2]
[335525950,1724307044726,-151.0,0.00019178,2]
[335525952,1724307044735,-287.00776487,0.00019178,2]
[335525954,1724307044744,-500.0,0.00019178,2]
[335525956,1724307044754,-500.0,0.00019178,2]
[335525958,1724307044764,-251.619917,0.00019178,2]
[335525960,1724307044774,-251.619917,0.00019178,2]
[335525962,1724307044783,-251.619917,0.00019178,2]
[335525964,1724307044793,-251.619917,0.00019178,2]
[335525966,1724307044803,-251.619917,0.00019178,2]
[335525968,1724307044812,-251.619917,0.00019178,2]
[335525970,1724307044822,-251.619917,0.00019178,2]
[335525972,1724307044832,-251.619917,0.00019178,2]
[335525974,1724307044842,-251.619917,0.00019178,2]
[335525976,1724307044852,-251.619917,0.00019178,2]
[335525978,1724307044861,-154.596156,0.00019178,2]
[335525980,1724307044871,-500.0,0.00019178,2]
[335525982,1724307044881,-500.0,0.00019178,2]
[335525983,1724307044891,-509.04748953,0.00019178,2]
[335525985,1724307044902,-500.0,0.00019178,2]
[335525987,1724307044912,-151.0,0.00019178,2]
[335525989,1724307044922,-504.76938422,0.00019178,2]
[335525990,1724307044931,-151.0,0.00019178,2]
[335525992,1724307044941,-151.0,0.00019178,2]
[335525994,1724307044951,-501.27091838,0.00019178,2]
[335525996,1724307044961,-151.0,0.00019178,2]
[335526014,1724307045123,-500.0,0.00019178,2]
[335526016,1724307045133,-151.0,0.00019178,2]
[335526018,1724307045143,-500.0,0.00019178,2]
[335526020,1724307045154,-151.0,0.00019178,2]
[335526022,1724307045163,-151.0,0.00019178,2]
[335526024,1724307045174,-151.0,0.00019178,2]
[335526026,1724307045184,-151.0,0.00019178,2]
[335526028,1724307045194,-151.0,0.00019178,2]
[335526030,1724307045204,-500.0,0.00019178,2]
[335526032,1724307045213,-500.0,0.00019178,2]
[335526034,1724307045223,-500.0,0.00019178,2]
[335526037,1724307045233,-500.0,0.00019178,2]
[335526039,1724307045242,-614.97,0.00019178,2]
[335526041,1724307045252,-5494.01,0.00019178,2]
[335526043,1724307045261,-295.48877479,0.00019178,2]
[335526045,1724307045270,-500.0,0.00019178,2]
[335526046,1724307045279,-344.41359493,0.00019178,2]
[335526048,1724307045289,-500.0,0.00019178,2]
[335526050,1724307045298,-624.19493233,0.00019178,2]
[335526052,1724307045308,-500.0,0.00019178,2]
[335526054,1724307045317,-1187.05,0.00019178,2]
[335526056,1724307045326,-500.0,0.00019178,2]
[335526058,1724307045336,-500.0,0.00019178,2]
[335526060,1724307045345,-500.0,0.00019178,2]
[335526062,1724307045354,-151.0,0.00019178,2]
[335526064,1724307045363,-169.9212,0.00019178,2]
[335526065,1724307045373,-500.0,0.00019178,2]
[335526066,1724307045382,-500.0,0.00019178,2]
[335526067,1724307045392,-4066.62,0.00019178,2]
[335526068,1724307045405,-649.4846348,0.00019178,2]
[335526069,1724307045414,-500.0,0.00019178,2]
[335526070,1724307045424,-206.84621049,0.00019178,2]
[335526071,1724307045434,-193.29800878,0.00019178,2]
[335526072,1724307045445,-500.0,0.00019178,2]
[335526073,1724307045455,-500.0,0.00019178,2]
[335526074,1724307045465,-808.36,0.00019178,2]
[335526075,1724307045476,-500.0,0.00019178,2]
[335526077,1724307045488,-500.0,0.00019178,2]
[335526079,1724307045498,-500.0,0.00019178,2]
[335526081,1724307045507,-504.31993508,0.00019178,2]
[335526083,1724307045517,-21543.17,0.00019178,2]
[335526085,1724307045527,-500.0,0.00019178,2]
[335526087,1724307045537,-500.0,0.00019178,2]
[335526089,1724307045547,-5688.14,0.00019178,2]
[335526091,1724307045557,-10111.05,0.00019178,2]
[335526093,1724307045568,-500.0,0.00019178,2]
[335526095,1724307045577,-503.10008164,0.00019178,2]
[335526097,1724307045586,-500.0,0.00019178,2]
[335526099,1724307045596,-500.0,0.00019178,2]
[335526101,1724307045606,-12225.58,0.00019178,2]
[335526103,1724307045616,-2222.69,0.00019178,2]
[335526105,1724307045625,-2822.85,0.00019178,2]
[335526107,1724307045636,-500.0,0.00019178,2]
[335526109,1724307045645,-500.0,0.00019178,2]
[335526111,1724307045656,-500.0,0.00019178,2]
[335526113,1724307045666,-151.0,0.00019178,2]
[335526115,1724307045675,-500.0,0.00019178,2]
[335526117,1724307045684,-151.0,0.00019178,2]
[335526119,1724307045694,-151.0,0.00019178,2]
[335526121,1724307045704,-151.0,0.00019178,2]
[335526123,1724307045713,-500.0,0.00019178,2]
[335526125,1724307045723,-630.08,0.00019178,2]
[335526128,1724307045735,-151.0,0.00019178,2]
[335526130,1724307045747,-151.0,0.00019178,2]
[335526132,1724307045759,-261.90468,0.00019178,2]
[335526134,1724307045769,-582.26,0.00019178,2]
[335526136,1724307045780,-518.70667014,0.00019178,2]
[335526139,1724307045791,-500.0,0.00019178,2]
[335526141,1724307045801,-500.0,0.00019178,2]
[335526143,1724307045811,-500.0,0.00019178,2]
[335526145,1724307045821,-500.0,0.00019178,2]
[335526147,1724307045830,-500.0,0.00019178,2]
[335526149,1724307045839,-151.0,0.00019178,2]
[335526151,1724307045849,-1160.84,0.00019178,2]
[335526153,1724307045858,-151.0,0.00019178,2]
[335526155,1724307045868,-151.0,0.00019178,2]
[335526157,1724307045877,-500.0,0.00019178,2]
[335526159,1724307045886,-151.0,0.00019178,2]
[335526161,1724307045896,-623.35572492,0.00019178,2]
[335526163,1724307045907,-500.0,0.00019178,2]
[335526165,1724307045917,-151.0,0.00019178,2]
[335526167,1724307045926,-500.0,0.00019178,2]
[335526169,1724307045935,-151.0,0.00019178,2]
[335526171,1724307045945,-587.23,0.00019178,2]
[335526173,1724307045954,-151.0,0.00019178,2]
[335526175,1724307045964,-151.0,0.00019178,2]
[335526177,1724307045974,-500.0,0.00019178,2]
[335526179,1724307045984,-513.16131913,0.00019178,2]
[335526181,1724307045993,-500.0,0.00019178,2]
[335526183,1724307046003,-500.0,0.00019178,2]
[335526186,1724307046013,-500.0,0.00019178,2]
[335526188,1724307046022,-2666.47,0.00019178,2]
[335526190,1724307046031,-151.0,0.00019178,2]
[335526192,1724307046041,-151.0,0.00019178,2]
[335526194,1724307046051,-151.0,0.00019178,2]
[335526196,1724307046060,-151.0,0.00019178,2]
[335526198,1724307046070,-500.0,0.00019178,2]
[335526200,1724307046079,-500.0,0.00019178,2]
[335526202,1724307046089,-500.0,0.00019178,2]
[335526204,1724307046098,-500.0,0.00019178,2]
[335526206,1724307046108,-500.0,0.00019178,2]
[335526208,1724307046117,-500.0,0.00019178,2]
[335526210,1724307046126,-515.89930344,0.00019178,2]
[335526212,1724307046136,-247.30101975,0.00019178,2]
[335526214,1724307046145,-2353.37,0.00019178,2]
[335526216,1724307046154,-500.0,0.00019178,2]
[335526218,1724307046164,-500.0,0.00019178,2]
[335526220,1724307046173,-813.3,0.00019178,2]
[335526222,1724307046182,-500.0,0.00019178,2]
[335526224,1724307046192,-500.0,0.00019178,2]
[335526226,1724307046201,-855.91,0.00019178,2]
[335526228,1724307046210,-500.0,0.00019178,2]
[335526230,1724307046220,-500.0,0.00019178,2]
[335526232,1724307046229,-151.0,0.00019178,2]
[335526234,1724307046239,-500.0,0.00019178,2]
[335526236,1724307046249,-155.033255,0.00019178,2]
[335526238,1724307046258,-500.0,0.00019178,2]
[335526240,1724307046267,-1498.55,0.00019178,2]
[335526242,1724307046277,-503.41375014,0.00019178,2]
[335526244,1724307046286,-1094.14,0.00019178,2]
[335526246,1724307046297,-500.0,0.00019178,2]
[335526249,1724307046309,-500.0,0.00019178,2]
[335526251,1724307046319,-500.0,0.00019178,2]
[335526253,1724307046331,-151.0,0.00019178,2]
[335526255,1724307046341,-193.002314,0.00019178,2]
[335526257,1724307046352,-151.0,0.00019178,2]
[335526259,1724307046362,-151.0,0.00019178,2]
[335526261,1724307046371,-506.37907937,0.00019178,2]
[335526263,1724307046382,-151.0,0.00019178,2]
[335526266,1724307046394,-500.0,0.00019178,2]
[335526268,1724307046406,-220.142791,0.00019178,2]
[335526270,1724307046415,-500.0,0.00019178,2]
[335526272,1724307046425,-502.79952749,0.00019178,2]
[335526274,1724307046437,-3188.51,0.00019178,2]
[335526276,1724307046448,-501.64568335,0.00019178,2]
[335526279,1724307046459,-500.0,0.00019178,2]
[335526281,1724307046471,-615.02,0.00019178,2]
[335526283,1724307046480,-500.0,0.00019178,2]
[335526285,1724307046490,-500.0,0.00019178,2]
[335526287,1724307046499,-500.0,0.00019178,2]
[335526289,1724307046509,-500.0,0.00019178,2]
[335526291,1724307046519,-500.0,0.00019178,2]
[335526293,1724307046529,-151.0,0.00019178,2]
[335526295,1724307046538,-500.0,0.00019178,2]
[335526297,1724307046547,-151.0,0.00019178,2]
[335526299,1724307046560,-500.0,0.00019178,2]
[335526301,1724307046570,-151.0,0.00019178,2]
[335526303,1724307046580,-151.0,0.00019178,2]
[335526305,1724307046591,-500.0,0.00019178,2]
[335526308,1724307046601,-151.713131,0.00019178,2]
[335526310,1724307046611,-500.0,0.00019178,2]
[335526312,1724307046621,-1862.52,0.00019178,2]
[335526314,1724307046630,-1726.44,0.00019178,2]
[335526316,1724307046642,-500.0,0.00019178,2]
[335526318,1724307046653,-1624.38,0.00019178,2]
[335526320,1724307046662,-500.0,0.00019178,2]
[335526322,1724307046672,-500.0,0.00019178,2]
[335526324,1724307046681,-500.0,0.00019178,2]
[335526326,1724307046691,-500.0,0.00019178,2]
[335526328,1724307046700,-500.0,0.00019178,2]
[335526330,1724307046711,-2304.2,0.00019178,2]
[335526332,1724307046720,-500.0,0.00019178,2]
[335526334,1724307046730,-500.37,0.00019178,2]
[335526336,1724307046740,-502.12618455,0.00019178,2]
[335526338,1724307046750,-500.0,0.00019178,2]
[335526340,1724307046759,-500.0,0.00019178,2]
[335526342,1724307046768,-500.0,0.00019178,2]
[335526344,1724307046777,-500.0,0.00019178,2]
[335526346,1724307046786,-500.0,0.00019178,2]
[335526348,1724307046796,-500.0,0.00019178,2]
[335526350,1724307046805,-508.49805302,0.00019178,2]
[335526353,1724307046816,-500.0,0.00019178,2]
[335526355,1724307046826,-500.0,0.00019178,2]
[335526357,1724307046836,-683.43,0.00019178,2]
[335526359,1724307046845,-538.13945674,0.00019178,2]
[335526361,1724307046855,-688.84,0.00019178,2]
[335526363,1724307046864,-500.0,0.00019178,2]
[335526365,1724307046874,-518.18294789,0.00019178,2]
[335526367,1724307046884,-210.775377,0.00019178,2]
[335526369,1724307046893,-500.0,0.00019178,2]
[335526371,1724307046904,-210.775377,0.00019178,2]
[335526373,1724307046913,-210.775377,0.00019178,2]
[335526375,1724307046923,-210.775377,0.00019178,2]
[335526377,1724307046932,-500.0,0.00019178,2]
[335526379,1724307046943,-210.775377,0.00019178,2]
[335526381,1724307046953,-210.775377,0.00019178,2]
[335526383,1724307046962,-500.0,0.00019178,2]
[335526385,1724307046971,-500.0,0.00019178,2]
[335526387,1724307046981,-210.775377,0.00019178,2]
[335526389,1724307046991,-500.0,0.00019178,2]
[335526391,1724307047000,-210.775377,0.00019178,2]
[335526393,1724307047010,-500.0,0.00019178,2]
[335526395,1724307047020,-500.0,0.00019178,2]
[335526397,1724307047029,-500.0,0.00019178,2]
[335526399,1724307047039,-500.0,0.00019178,2]
[335526401,1724307047048,-2139.81,0.00019178,2]
[335526404,1724307047058,-500.0,0.00019178,2]
[335526406,1724307047067,-500.0,0.00019178,2]
[335526408,1724307047077,-9635.71,0.00019178,2]
[335526410,1724307047086,-853.63,0.00019178,2]
[335526412,1724307047096,-500.0,0.00019178,2]
[335526414,1724307047105,-500.0,0.00019178,2]
[335526416,1724307047114,-175.989862,0.00019178,2]
[335526418,1724307047124,-175.989862,0.00019178,2]
[335526420,1724307047133,-500.0,0.00019178,2]
[335526422,1724307047142,-175.989862,0.00019178,2]
[335526423,1724307047151,-500.0,0.00019178,2]
[335526425,1724307047161,-175.989862,0.00019178,2]
[335526427,1724307047170,-500.0,0.00019178,2]
[335526430,1724307047179,-175.989862,0.00019178,2]
[335526432,1724307047189,-175.989862,0.00019178,2]
[335526434,1724307047199,-175.989862,0.00019178,2]
[335526436,1724307047208,-500.0,0.00019178,2]
[335526438,1724307047217,-175.989862,0.00019178,2]
[335526440,1724307047227,-547.43084367,0.00019178,2]
[335526441,1724307047236,-500.0,0.00019178,2]
[335526443,1724307047245,-782.84,0.00019178,2]
[335526446,1724307047255,-501.31524278,0.00019178,2]
[335526448,1724307047264,-500.0,0.00019178,2]
[335526450,1724307047273,-501.48013011,0.00019178,2]
[335526452,1724307047283,-500.0,0.00019178,2]
[335526454,1724307047292,-500.0,0.00019178,2]
[335526456,1724307047302,-500.0,0.00019178,2]
[335526458,1724307047311,-500.0,0.00019178,2]
[335526460,1724307047321,-3617.43,0.00019178,2]
[335526462,1724307047330,-500.0,0.00019178,2]
[335526463,1724307047340,-500.0,0.00019178,2]
[335526464,1724307047350,-921.2,0.00019178,2]
[335526465,1724307047359,-692.76,0.00019178,2]
[335526466,1724307047368,-500.0,0.00019178,2]
[335526467,1724307047378,-502.1206625,0.00019178,2]
[335526468,1724307047387,-500.0,0.00019178,2]
[335526469,1724307047397,-510.75674446,0.00019178,2]
[335526470,1724307047409,-500.0,0.00019178,2]
[335526471,1724307047419,-500.0,0.00019178,2]
[335526473,1724307047428,-500.0,0.00019178,2]
[335526475,1724307047437,-500.0,0.00019178,2]
[335526477,1724307047447,-1098.09,0.00019178,2]
[335526479,1724307047457,-151.0,0.00019178,2]
[335526481,1724307047467,-151.0,0.00019178,2]
[335526483,1724307047478,-151.0,0.00019178,2]
[335526485,1724307047488,-151.0,0.00019178,2]
[335526488,1724307047499,-500.0,0.00019178,2]
[335526490,1724307047510,-538.65,0.00019178,2]
[335526492,1724307047520,-151.0,0.00019178,2]
[335526494,1724307047530,-151.0,0.00019178,2]
[335526500,1724307047579,-286.92579361,0.00019178,2]
[335526502,1724307047589,-901.43,0.00019178,2]
[335526504,1724307047599,-500.0,0.00019178,2]
[335526506,1724307047611,-176.419029,0.00019178,2]
[335526508,1724307047622,-500.0,0.00019178,2]
[335526510,1724307047633,-552.88,0.00019178,2]
[335526512,1724307047645,-500.0,0.00019178,2]
[335526515,1724307047657,-788.01,0.00019178,2]
[335526517,1724307047667,-858.28,0.00019178,2]
[335526519,1724307047676,-500.0,0.00019178,2]
[335526521,1724307047686,-500.0,0.00019178,2]
[335526523,1724307047697,-500.0,0.00019178,2]
[335526525,1724307047706,-500.0,0.00019178,2]
[335526527,1724307047716,-500.0,0.00019178,2]
[335526529,1724307047725,-500.0,0.00019178,2]
[335526531,1724307047734,-500.0,0.00019178,2]
[335526533,1724307047744,-151.0,0.00019178,2]
[335526535,1724307047753,-151.0,0.00019178,2]
[335526537,1724307047763,-500.0,0.00019178,2]
[335526539,1724307047772,-151.0,0.00019178,2]
[335526541,1724307047782,-500.0,0.00019178,2]
[335526543,1724307047791,-151.0,0.00019178,2]
[335526545,1724307047800,-151.0,0.00019178,2]
[335526547,1724307047809,-500.0,0.00019178,2]
[335526549,1724307047818,-500.0,0.00019178,2]
[335526551,1724307047829,-3478.82,0.00019178,2]
[335526553,1724307047839,-500.0,0.00019178,2]
[335526555,1724307047848,-500.0,0.00019178,2]
[335526557,1724307047861,-500.0,0.00019178,2]
[335526559,1724307047872,-500.0,0.00019178,2]
[335526562,1724307047883,-550.63,0.00019178,2]
[335526564,1724307047893,-500.0,0.00019178,2]
[335526566,1724307047903,-500.0,0.00019178,2]
[335526568,1724307047913,-500.0,0.00019178,2]
[335526570,1724307047923,-500.0,0.00019178,2]
[335526572,1724307047933,-6298.09,0.00019178,2]
[335526574,1724307047944,-6298.09,0.00019178,2]
[335526576,1724307047956,-1203.56,0.00019178,2]
[335526578,1724307047967,-500.0,0.00019178,2]
[335526580,1724307047977,-6298.09,0.00019178,2]
[335526582,1724307047987,-6298.09,0.00019178,2]
[335526585,1724307047998,-500.0,0.00019178,2]
[335526587,1724307048007,-6298.09,0.00019178,2]
[335526589,1724307048017,-6298.09,0.00019178,2]
[335526591,1724307048027,-6298.09,0.00019178,2]
[335526593,1724307048036,-6298.09,0.00019178,2]
[335526595,1724307048047,-6298.09,0.00019178,2]
[335526597,1724307048058,-6298.09,0.00019178,2]
[335526599,1724307048069,-6298.09,0.00019178,2]
[335526601,1724307048079,-600.94105593,0.00019178,2]
[335526603,1724307048089,-6298.09,0.00019178,2]
[335526605,1724307048100,-6298.09,0.00019178,2]
[335526607,1724307048109,-6298.09,0.00019178,2]
[335526610,1724307048120,-500.0,0.00019178,2]
[335526612,1724307048131,-6298.09,0.00019178,2]
[335526614,1724307048142,-6298.09,0.00019178,2]
[335526616,1724307048154,-6298.09,0.00019178,2]
[335526618,1724307048164,-6298.09,0.00019178,2]
[335526620,1724307048174,-500.0,0.00019178,2]
[335526623,1724307048184,-6298.09,0.00019178,2]
[335526625,1724307048194,-6298.09,0.00019178,2]
[335526627,1724307048205,-6298.09,0.00019178,2]
[335526629,1724307048215,-6298.09,0.00019178,2]
[335526631,1724307048228,-6298.09,0.00019178,2]
[335526633,1724307048238,-572.2,0.00019178,2]
[335526636,1724307048249,-6298.26696168,0.00019178,2]
[335526638,1724307048259,-500.0,0.00019178,2]
[335526640,1724307048269,-500.0,0.00019178,2]
[335526642,1724307048278,-500.0,0.00019178,2]
[335526644,1724307048288,-566.89,0.00019178,2]
[335526646,1724307048299,-500.0,0.00019178,2]
[335526648,1724307048309,-2333.16,0.00019178,2]
[335526650,1724307048319,-500.0,0.00019178,2]
[335526652,1724307048329,-500.0,0.00019178,2]
[335526654,1724307048339,-162.724549,0.00019178,2]
[335526656,1724307048348,-162.8524881,0.00019178,2]
[335526658,1724307048358,-251.0,0.00019178,2]
[335526660,1724307048368,-309.06,0.000192,2]
[335526662,1724307048377,-173.56,0.000192,2]
[335526664,1724307048388,-151.0,0.000192,2]
[335526666,1724307048398,-210.775377,0.000192,2]
[335526669,1724307048410,-210.775377,0.000192,2]
[335526671,1724307048420,-175.989862,0.000192,2]
[335526673,1724307048431,-175.989862,0.000192,2]
[335526675,1724307048440,-151.0,0.000192,2]
[335526677,1724307048450,-290.93966491,0.00019216,2]
[335526679,1724307048460,-151.0,0.00019222,2]
[335526681,1724307048470,-151.0,0.00019222,2]
[335526683,1724307048480,-151.0,0.00019222,2]
[335526685,1724307048490,-151.0,0.00019222,2]
[335526687,1724307048500,-1000.0,0.00019226,2]
[335526689,1724307048510,-1000.0,0.00019237,2]
[335526691,1724307048521,-1000.0,0.00019238,2]
[335526693,1724307048531,-306.0,0.0001926,2]
[335526695,1724307048541,-1000.0,0.00019262,2]
[335526697,1724307048550,-1000.0,0.00019292,2]
[335526699,1724307048565,-1000.0,0.00019293,2]
[335526701,1724307048575,-1000.0,0.00019362,2]
[335526704,1724307048585,-5332.25636157,0.00019372,2]
[335526706,1724307048596,-1000.0,0.00019383,2]
[335526708,1724307048606,-1000.0,0.00019388,2]
[335526710,1724307048618,-150.112233,0.000194,2]
[335526712,1724307048628,-1000.0,0.00019401,2]
[335526714,1724307048639,-1000.0,0.00019404,2]
[335526716,1724307048650,-1000.0,0.00019407,2]
[335526718,1724307048659,-1000.0,0.00019414,2]
[335526720,1724307048669,-1000.0,0.00019422,2]
[335526722,1724307048679,-154.76012181,0.00019451,2]
[335526724,1724307048689,-154.76012181,0.00019452,2]
[335526726,1724307048698,-153.0,0.00019477,2]
[335526728,1724307048708,-153.0,0.00019477,2]
[335526730,1724307048717,-153.0,0.00019477,2]
[335526732,1724307048726,-153.0,0.00019477,2]
[335526735,1724307048737,-153.0,0.00019477,2]
[335526737,1724307048746,-153.0,0.00019477,2]
[335526739,1724307048757,-153.0,0.00019481,2]
[335526741,1724307048769,-153.0,0.00019481,2]
[335526743,1724307048778,-153.0,0.00019481,2]
[335526745,1724307048787,-153.0,0.00019481,2]
[335526747,1724307048797,-199.0,0.00019485,2]
[335526749,1724307048807,-300.0,0.00019537,2]
[335526752,1724307048817,-945.59,0.00019588,7]
[335526754,1724307048827,-642.39,0.00019588,7]
[335526756,1724307048837,-151.0,0.00019626,2]
[335526758,1724307048846,-151.0,0.00019626,2]
[335526760,1724307048856,-159.494358,0.00019626,2]
[335526762,1724307048865,-257.603894,0.00019626,2]
[335526764,1724307048875,-458.759137,0.00019626,2]
[335526766,1724307048885,-458.759137,0.00019626,2]
[335526768,1724307048895,-151.0,0.00019626,2]
[335526770,1724307048904,-151.0,0.00019626,2]
[335526772,1724307048913,-151.0,0.00019626,2]
[335526774,1724307048923,-251.619917,0.00019626,2]
[335526776,1724307048932,-251.619917,0.00019626,2]
[335526778,1724307048942,-151.0,0.00019626,2]